[Event "Budapest Chess Festival 2024"]
[Site "Budapest"]
[Date "2024.05.29"]
[Round "7.2"]
[White "Sokolovsky, Yahli"]
[Black "Kadric, Denis"]
[Result "1-0"]
[ECO "B30"]
[WhiteElo "2484"]
[BlackElo "2558"]
[Annotator "TA"]
[PlyCount "47"]
[EventDate "2024.05.20"]
[EventType "swiss"]
[EventCountry "HUN"]
[SourceTitle "playchess.com"]
[Source "ChessBase"]
[SourceQuality "1"]
[TimeControl "40/5400+30:1800+30"]

{[%evp 9,47,21,49,17,31,47,32,33,34,18,22,16,34,35,68,42,30,29,227,235,254,236,225,193,225,40,365,293,606,641,636,643,605,596,617,442,1717,2006,1906,1846]} 1. e4 {[%emt 0:00:32]} c5 {[%emt 0:04:12]} 2. Nf3 {[%emt 0:00:03]} Nc6 {[%emt 0:00:06]} 3. Bb5 {[%emt 0:00:08]} e6 {[%emt 0:00:22]} 4. O-O {[%emt 0:00:36]} Nge7 {[%emt 0:00:06]} 5. Re1 {[%emt 0:00:08]} b6 {[%emt 0:00:31]} 6. d4 {[%emt 0:01:05]} Nxd4 {[%emt 0:00:52]} 7. Nxd4 {[%emt 0:00:07]} cxd4 {[%emt 0:00:01]} 8. Qxd4 {[%emt 0:00:11] White is slightly better.} Qc7 {[%emt 0:00:13]} 9. Be3 {[%emt 0:02:48]} Nc6 {[%emt 0:01:42]} 10. Qd2 {[%emt 0:00:06]} Bd6 {[%emt 0:03:41]} 11. f4 {[%emt 0:03:16]} g5 {[%emt 0:06:36][%cal Rg5f4]} 12. e5 {[%emt 0:03:18] White is more active.} (12. fxg5 Bxh2+ 13. Kh1 O-O $11) 12... Bb4 {[%emt 0:07:15]} 13. c3 {[%emt 0:12:15][%cal Bc2c3,Bc3b4][%mdl 32]} gxf4 $2 {[%emt 0:03:12]} (13... Be7 $1 $11) 14. cxb4 $18 {[%emt 0:05:44]} (14. Bxf4 Be7 $14) 14... fxe3 {[%emt 0:00:09]} 15. Rxe3 {[%emt 0:00:24] And now Nc3 would win.} (15. Qxe3 Nxb4 16. Rc1 Nd5 $16) 15... Bb7 {[%emt 0:11:18]} 16. Na3 {[%emt 0:02:20]} Rg8 {[%emt 0:08:51] [#]} 17. Nc4 {[%emt 0:02:14]} ({White should play} 17. Rc1 $1 $18 a6 18. Bxc6 Bxc6 19. b5 axb5 (19... Rxg2+ $2 20. Qxg2 Bxg2 21. Rxc7 $18) 20. Nxb5) 17... Ke7 $2 {[%emt 0:11:13][%mdl 8192]} (17... Nxe5 $1 $14 18. Nd6+ Ke7 19. Nxb7 a6 (19... Ng4 20. Rg3 $14) 20. Rxe5 axb5) 18. Rf1 {[%emt 0:07:58]} Raf8 $2 {[%emt 0:05:06]} (18... Nd4 19. Nd6 (19. Qxd4 $2 Rxg2+ 20. Kh1 Rg4+ $19) 19... Rxg2+ 20. Qxg2 Bxg2 21. Rxf7+ Kd8) 19. Rg3 {[%emt 0:03:58] Threatens to win with Qh6. White is clearly winning.} a6 {[%emt 0:19:20] [#]} 20. Qf4 $1 {[%emt 0:15:56]} Kd8 {[%emt 0:00:06] [#]} 21. Nd6 $1 {[%emt 0:01:10] aiming for Rxg8.} Rxg3 {[%emt 0:05:02]} 22. hxg3 {[%emt 0:00:29]} (22. Bxc6 Qxc6 23. Qxg3 Kc7 $16) 22... axb5 {[%emt 0:06:23]} (22... Qb8 $142 23. a4 (23. Nxf7+ Kc7 $18) 23... Ne7 (23... axb5 $2 24. Qh6 $18)) 23. Qh6 {[%emt 0:01:49]} Rg8 {[%emt 0:00:17]} 24. Rxf7 {[%emt 0:01:11] Weighted Error Value: White=0.41/Black=0.61.  Loses game:     	---       	Black=2      Missed win:     	White=1     	---        Mistake:       	---       	Black=2      Inaccurate:     	White=1     	Black=1      OK:         	White=3     	Black=6      Best:        	White=2     	---} (24. Nxb5 $2 {too greedy.} Qxe5 25. Rxf7 Qe1+ (25... Qxb5 $2 26. Qxh7 $19) 26. Rf1 Qxb4 $19 (26... Qxg3 27. Rf8+ Rxf8 28. Qxf8#)) 1-0

[Event "Budapest Chess Festival 2024"]
[Site "Budapest"]
[Date "2024.05.29"]
[Round "7.3"]
[White "Nasuta, Grzegorz"]
[Black "Popovic, Dusan"]
[Result "1-0"]
[ECO "B90"]
[WhiteElo "2547"]
[BlackElo "2486"]
[Annotator "TA"]
[PlyCount "73"]
[EventDate "2024.05.20"]
[EventType "swiss"]
[EventCountry "HUN"]
[SourceTitle "playchess.com"]
[Source "ChessBase"]
[SourceQuality "1"]
[TimeControl "40/5400+30:1800+30"]

{[%evp 11,73,20,35,25,41,16,31,27,36,31,41,20,59,74,68,63,120,64,56,54,58,60,69,68,48,60,62,60,98,81,125,120,132,129,118,104,189,89,131,135,147,133,187,205,238,252,257,257,300,315,297,313,395,410,333,275,417,399,573,372,729,724,840,802]} 1. e4 c5 {[%emt 0:02:58]} 2. Nf3 {[%emt 0:00:41]} d6 {[%emt 0:00:17]} 3. d4 {[%emt 0:00:27]} cxd4 {[%emt 0:00:06]} 4. Nxd4 {[%emt 0:00:07]} Nf6 {[%emt 0:00:06]} 5. Nc3 {[%emt 0:00:06]} a6 {[%emt 0:00:05]} 6. Be3 {[%emt 0:00:16]} Nc6 {[%emt 0:00:44]} 7. Nb3 {[%emt 0:11:35]} Ng4 {[%emt 0:07:26]} 8. Bd2 {[%emt 0:04:23]} e5 {[%emt 0:04:46]} 9. Qe2 {[%emt 0:21:49] White is slightly better.} a5 {[%emt 0:17:58]} 10. a4 {[%emt 0:07:19]} Be7 {[%emt 0:11:17]} 11. O-O-O {[%emt 0:01:26]} f5 {[%emt 0:02:24]} 12. h3 {[%emt 0:37:12]} Nf6 {[%emt 0:00:30]} 13. f4 {[%emt 0:01:18]} Nd4 {[%emt 0:07:29]} (13... O-O $14) 14. Qf2 {[%emt 0:05:39]} (14. Nxd4 $16 exd4 15. Nd5) 14... Nxb3+ $14 {[%emt 0:15:23]} 15. cxb3 {[%emt 0:00:02] [#] Strongly threatening fxe5.} O-O $1 {[%emt 0:00:09]} 16. Bc4+ {[%emt 0:01:59]} Kh8 {[%emt 0:00:29]} 17. fxe5 {[%emt 0:01:10]} Nxe4 {[%emt 0:05:33]} 18. Nxe4 {[%emt 0:00:05]} fxe4 {[%emt 0:00:05]} 19. Qd4 {[%emt 0:00:04]} Bf5 {[%emt 0:01:13]} 20. exd6 {[%emt 0:02:08] White is much more active.} Qxd6 {[%emt 0:04:18]} 21. Qxd6 {[%emt 0:00:06]} Bxd6 {[%emt 0:00:04]} 22. Be3 $36 {[%emt 0:00:08][%mdl 2048] White is really pushing.} Bb4 {[%emt 0:06:10]} 23. Rhf1 {[%emt 0:00:07]} h6 {[%emt 0:00:12]} (23... Rae8 $16 24. g4 Bg6) 24. Kc2 {[%emt 0:01:52]} (24. g4 $18 Bg6 25. Rxf8+ Bxf8 26. Rd7) 24... Rac8 {[%emt 0:06:48]} 25. Rd5 {[%emt 0:00:51]} Be6 {[%emt 0:00:28]} 26. Rxf8+ {[%emt 0:00:06]} Bxf8 {[%emt 0:05:57]} (26... Rxf8 $16 27. Re5 Bd7) 27. Rxa5 $18 {[%emt 0:00:09]} Bxc4 {[%emt 0:00:04]} 28. bxc4 {[%emt 0:00:03]} Rxc4+ $16 {[%emt 0:00:06][%mdl 4096] Endgame. KRB-KRB} 29. Kb3 {[%emt 0:00:15]} Rc8 {[%emt 0:01:14]} 30. Re5 {[%emt 0:00:01]} Kg8 {[%emt 0:00:27]} 31. Rxe4 {[%emt 0:00:02]} Kf7 {[%emt 0:00:09]} 32. Rc4 {[%emt 0:00:39]} Re8 {[%emt 0:00:05]} 33. Rc7+ {[%emt 0:00:05]} Kg6 {[%emt 0:01:02]} (33... Re7 $142 34. Rxe7+ Bxe7) 34. Bd4 {[%emt 0:00:53]} Re4 {[%emt 0:00:44]} (34... Re7 {keeps fighting.} 35. Rxe7 Bxe7) 35. Bc3 {[%emt 0:01:17]} Re2 $2 {[%emt 0:00:40] [#]} (35... Re7 36. Rxe7 Bxe7) 36. Rxb7 $18 {[%emt 0:00:05]} Rxg2 {[%emt 0:00:12]} 37. a5 {[%emt 0:00:21] Weighted Error Value: White=0.18 (very precise) /Black=0.38.  Mistake:       	White=2     	Black=6      Inaccurate:     	White=1     	Black=4      OK:         	White=13    	Black=4      Best:        	White=3     	Black=2      Strong:       	---       	Black=1} 1-0

[Event "Budapest Chess Festival 2024"]
[Site "Budapest"]
[Date "2024.05.29"]
[Round "7.4"]
[White "Aryan Chopra"]
[Black "Yaniv, Yuval"]
[Result "1-0"]
[ECO "E97"]
[WhiteElo "2641"]
[BlackElo "2337"]
[Annotator "TA"]
[PlyCount "99"]
[EventDate "2024.05.20"]
[EventType "swiss"]
[EventCountry "HUN"]
[SourceTitle "playchess.com"]
[Source "ChessBase"]
[SourceQuality "1"]
[TimeControl "40/5400+30:1800+30"]

{[%evp 20,99,54,34,43,15,59,61,55,44,68,67,69,66,132,139,141,117,117,110,149,107,110,92,99,61,69,52,103,100,112,127,120,120,122,120,102,102,140,138,151,108,110,92,153,154,183,179,185,168,157,155,242,244,230,231,337,329,522,521,736,723,756,753,736,714,2031,1979,4133,2761,29962,29963,29968,29970,29965,29956,29977,29978,29978,29979,29986,29987]} 1. d4 {[%emt 0:02:03]} Nf6 {[%emt 0:01:13]} 2. c4 {[%emt 0:00:05]} g6 {[%emt 0:00:39]} 3. Nc3 {[%emt 0:00:06]} Bg7 {[%emt 0:00:23]} 4. e4 {[%emt 0:00:07]} d6 {[%emt 0:00:10]} 5. Nf3 {[%emt 0:00:10]} O-O {[%emt 0:00:33]} 6. Be2 {[%emt 0:00:06]} e5 {[%emt 0:00:32]} 7. O-O {[%emt 0:00:12]} Nc6 {[%emt 0:01:07]} 8. d5 {[%emt 0:00:10]} Ne7 {[%emt 0:00:06]} 9. b4 {[%emt 0:00:30]} a5 {[%emt 0:00:37]} 10. bxa5 {[%emt 0:00:18]} Rxa5 {[%emt 0:01:14]} 11. a4 {[%emt 0:00:22]} Ne8 {[%emt 0:01:55]} 12. Be3 {[%emt 0:05:40][%cal Oc4c5]} h6 {[%emt 0:11:13]} 13. Nd2 {[%emt 0:09:31][%cal Oc4c5]} f5 {[%emt 0:02:44][%cal Bf7f5,Bf5f4][%mdl 32] White is slightly better.} 14. f3 {[%emt 0:13:29][%cal Oc4c5]} b6 {[%emt 0:08:31]} 15. Nb3 {[%emt 0:00:25]} Ra8 {[%emt 0:00:13]} 16. a5 {[%emt 0:00:35]} Rb8 {[%emt 0:11:01]} (16... bxa5 $14 17. Nxa5 (17. Rxa5 Rxa5 18. Nxa5 Kh7 $16) 17... fxe4) 17. axb6 $16 {[%emt 0:18:29]} cxb6 {[%emt 0:00:11]} 18. Ra7 {[%emt 0:01:13]} f4 {[%emt 0:05:50]} 19. Bf2 {[%emt 0:00:07]} Bd7 {[%emt 0:00:21]} 20. Nb5 {[%emt 0:04:41]} Nc8 {[%emt 0:01:01]} 21. Ra3 {[%emt 0:02:22]} g5 {[%emt 0:03:32]} 22. g4 {[%emt 0:08:22]} fxg3 {[%emt 0:03:21]} 23. hxg3 {[%emt 0:00:05]} Nf6 {[%emt 0:07:07] [#]} (23... Bh3 $14) 24. Nd2 $1 {[%emt 0:02:46][%cal Bb3d2,Bd2f1,Bf1e3,Be3f5][%mdl 32]} h5 {[%emt 0:02:30]} 25. Be3 {[%emt 0:01:50]} Bh6 {[%emt 0:07:59]} 26. Rf2 {[%emt 0:00:32]} Rf7 {[%emt 0:02:28]} 27. Nf1 {[%emt 0:04:46]} Rg7 {[%emt 0:01:35]} 28. Rh2 {[%emt 0:03:02]} Be8 {[%emt 0:09:24]} 29. g4 {[%emt 0:01:26]} Ne7 {[%emt 0:01:30]} 30. Ra7 {[%emt 0:05:12] Nc7 would now be deadly.} h4 {[%emt 0:05:11]} 31. Bd2 {[%emt 0:04:37]} Nh7 {[%emt 0:01:35]} ({Black should play} 31... Bxb5 32. cxb5 Ng6) 32. Ne3 {[%emt 0:01:53]} Nf8 {[%emt 0:00:30] [#]} 33. Rxe7 $1 {[%emt 0:03:25][%mdl 512]} Rxe7 {[%emt 0:00:43]} 34. Nf5 $1 {[%emt 0:00:06][%csl LRd6,LRe7,LRh6]} Rh7 {[%emt 0:01:26]} 35. Nbxd6 {[%emt 0:02:26] White is much more active. Excellent horsemanship.} (35. Nfxd6 Bxb5 36. Nxb5 Rd7 $11) 35... Ng6 {[%emt 0:02:38]} (35... Bd7 $16 36. Qc1 Ra8 37. Nxh6+ Rxh6) 36. Nxe8 $18 {[%emt 0:02:27]} Qxe8 {[%emt 0:00:03]} 37. d6 {[%emt 0:00:04]} Qd8 {[%emt 0:02:49] Prevents c5} (37... Nf8 $142 38. Be3 Nd7 39. Qd5+ Qf7) 38. Qc1 {[%emt 0:03:26]} Nf4 {[%emt 0:01:04]} (38... Qc8 {might work better.} 39. Be3 (39. Bxg5 Bxg5 40. Qxg5 Kf7 $18) 39... Bg7 40. Bxg5 Kf7) 39. Bxf4 {[%emt 0:00:09]} gxf4 {[%emt 0:00:06] [#] Black is weak on the light squares} 40. c5 $1 {[%emt 0:00:00]} (40. Nxh4 Bf8 41. Nf5 Rxh2 42. Kxh2 Bxd6 $15) (40. Rxh4 Bg5 41. Rxh7 Kxh7 $16) 40... bxc5 {[%emt 0:00:00]} 41. Rxh4 {[%emt 0:06:54]} ({Not} 41. Nxh4 Qxd6 42. Nf5 Qb6 $14) 41... Qf6 {[%emt 0:15:28]} 42. Qxc5 {[%emt 0:05:43]} Rb1+ {[%emt 0:09:12]} 43. Kg2 {[%emt 0:15:23] Threatening mate with Bc4+.} Rb2 {[%emt 0:03:23]} 44. Qc4+ {[%emt 0:02:48]} Kh8 {[%emt 0:00:13] [#]} 45. d7 $1 {[%emt 0:01:02][%mdl 512] White mates.} Rd2 {[%emt 0:09:06]} 46. Rxh6 {[%emt 0:00:24]} (46. d8=N Rxd8 47. Rh5 Bg7 (47... Bg5 48. Qc7 $15) 48. Rxh7+ Kxh7 $19) 46... Rxh6 {[%emt 0:00:27]} 47. Nxh6 {[%emt 0:00:03]} Qxh6 {[%emt 0:00:08]} 48. Qc8+ {[%emt 0:00:06]} Kh7 {[%emt 0:00:06]} 49. d8=Q {[%emt 0:00:06][%csl Gc8][%cal Rd8g8]} ({Weaker is} 49. d8=B Rxe2+ 50. Kf1 Rd2 51. Qf5+ Kg8 52. Qg5+ Qxg5 53. Bxg5 Kg7 $17) 49... Rxe2+ {[%emt 0:00:49]} 50. Kf1 {[%emt 0:00:03] Weighted Error Value: White=0.07 (flawless) /Black=0.51.  Mistake:       	---       	Black=6      Inaccurate:     	White=2     	Black=4      OK:         	White=13    	Black=7      Best:        	White=3     	---        Strong:       	White=2     	---} 1-0

[Event "Budapest Chess Festival 2024"]
[Site "Budapest"]
[Date "2024.05.29"]
[Round "7.5"]
[White "Deuer, Marius"]
[Black "Berkes, Ferenc"]
[Result "1/2-1/2"]
[ECO "D11"]
[WhiteElo "2436"]
[BlackElo "2618"]
[Annotator "TA"]
[PlyCount "62"]
[EventDate "2024.05.20"]
[EventType "swiss"]
[EventCountry "HUN"]
[SourceTitle "playchess.com"]
[Source "ChessBase"]
[SourceQuality "1"]
[TimeControl "40/5400+30:1800+30"]

{[%evp 13,62,12,12,-6,10,0,0,0,0,-1,0,-3,0,0,0,-38,-38,-30,-16,-30,-24,-15,0,-35,-25,-34,-43,-37,0,-30,-13,-37,-40,-46,-17,-27,-22,-18,0,-16,2,2,9,0,0,0,34,33,28,39,120]} 1. d4 {[%emt 0:00:32]} d5 {[%emt 0:00:41]} 2. c4 {[%emt 0:00:07]} c6 {[%emt 0:00:09]} 3. Nf3 {[%emt 0:00:07]} Nf6 {[%emt 0:00:09]} 4. Qc2 {[%emt 0:00:13]} g6 {[%emt 0:00:18]} 5. Bf4 {[%emt 0:00:07]} Bg7 {[%emt 0:00:20]} 6. e3 {[%emt 0:00:09]} O-O {[%emt 0:00:23]} 7. Nc3 {[%emt 0:00:06]} Qa5 {[%emt 0:00:38]} 8. Nd2 {[%emt 0:14:49]} Bf5 {[%emt 0:02:55]} 9. Bd3 {[%emt 0:04:45]} Bxd3 {[%emt 0:02:09]} 10. Qxd3 {[%emt 0:00:02] The position is equal.} Nbd7 {[%emt 0:00:12]} 11. O-O {[%emt 0:01:28][%cal Ob2b4]} Qa6 {[%emt 0:01:26]} 12. b4 {[%emt 0:06:21]} Nb6 {[%emt 0:01:37][%cal Rd5c4]} 13. b5 {[%emt 0:01:49]} cxb5 {[%emt 0:00:34]} 14. cxb5 {[%emt 0:11:40]} Qa3 {[%emt 0:02:19]} 15. Rab1 {[%emt 0:07:36]} e6 {[%emt 0:20:37]} 16. h3 {[%emt 0:03:14]} Rac8 {[%emt 0:13:08]} 17. Rb3 {[%emt 0:04:50]} Qe7 {[%emt 0:00:30]} 18. Nf3 {[%emt 0:04:12]} (18. Ne2 $5) 18... Nc4 {[%emt 0:01:13]} 19. Rbb1 {[%emt 0:06:30]} Qa3 {[%emt 0:04:06] [#] White must now prevent ...Na5.} 20. Rb3 {[%emt 0:01:13]} Qe7 {[%emt 0:00:23]} 21. Rbb1 {[%emt 0:00:05]} h6 {[%emt 0:03:43]} 22. Rfe1 {[%emt 0:04:05]} Rfd8 {[%emt 0:00:28]} 23. Re2 {[%emt 0:01:28]} Ne8 {[%emt 0:15:50]} 24. a4 {[%emt 0:04:07]} Ned6 {[%emt 0:00:05]} 25. Ra2 {[%emt 0:03:41]} Qf6 {[%emt 0:02:59]} 26. a5 {[%emt 0:04:20]} Qf5 {[%emt 0:01:20]} 27. Qxf5 {[%emt 0:00:09]} Nxf5 {[%emt 0:00:11]} 28. Na4 {[%emt 0:01:47]} g5 {[%emt 0:02:05]} 29. Bh2 {[%emt 0:00:11]} Bf8 {[%emt 0:09:44][%cal Oc4a3]} 30. b6 {[%emt 0:03:54]} axb6 {[%emt 0:00:14]} 31. g4 {[%emt 0:00:13]} Nfd6 {[%emt 0:01:08] Weighted Error Value: White=0.07 (flawless) /Black=0.08 (flawless) .  Mistake:       	---       	Black=1      Inaccurate:     	White=2     	Black=2      OK:         	White=9     	Black=9      Best:        	White=2     	---} (31... b5 $1 $14) 1/2-1/2

[Event "Budapest Chess Festival 2024"]
[Site "Budapest"]
[Date "2024.05.29"]
[Round "7.6"]
[White "Gschnitzer, Adrian"]
[Black "Samunenkov, Ihor"]
[Result "1/2-1/2"]
[ECO "B12"]
[WhiteElo "2431"]
[BlackElo "2547"]
[Annotator "TA"]
[PlyCount "53"]
[EventDate "2024.05.20"]
[EventType "swiss"]
[EventCountry "HUN"]
[SourceTitle "playchess.com"]
[Source "ChessBase"]
[SourceQuality "1"]
[TimeControl "40/5400+30:1800+30"]

{[%evp 9,53,0,12,8,0,9,16,8,-4,-40,-27,-24,-20,-19,-10,-11,-10,-15,-6,-8,0,0,12,0,0,0,0,0,0,0,36,30,59,0,0,0,0,0,0,0,2,0,0,0,0,0]} 1. e4 {[%emt 0:00:33]} c6 {[%emt 0:00:44]} 2. d4 {[%emt 0:00:09]} d5 {[%emt 0:00:07]} 3. e5 {[%emt 0:00:06]} c5 {[%emt 0:00:06]} 4. dxc5 {[%emt 0:03:08]} e6 {[%emt 0:00:09]} 5. a3 {[%emt 0:00:13]} Bxc5 {[%emt 0:00:12]} 6. b4 {[%emt 0:00:40]} Be7 {[%emt 0:00:11]} 7. Nf3 {[%emt 0:00:43]} Nd7 {[%emt 0:00:20]} 8. Bb2 {[%emt 0:01:33]} a5 {[%emt 0:01:03]} 9. bxa5 {[%emt 0:03:50]} Nh6 {[%emt 0:13:03]} 10. Bd3 {[%emt 0:00:40]} O-O {[%emt 0:04:01][%cal Of7f6]} 11. O-O {[%emt 0:06:10]} Rxa5 {[%emt 0:02:24]} 12. Nbd2 {[%emt 0:04:19][%cal Bb1d2,Bd2b3,Bb3d4][%mdl 32]} Nc5 {[%emt 0:01:48]} 13. Nb3 {[%emt 0:01:25]} Nxd3 {[%emt 0:01:41]} 14. cxd3 {[%emt 0:03:41]} Ra8 {[%emt 0:13:44]} 15. Nbd4 {[%emt 0:07:19]} Qb6 {[%emt 0:19:00]} 16. Qe2 {[%emt 0:18:00]} Bd7 {[%emt 0:02:15]} 17. Rfb1 {[%emt 0:04:34]} Rfc8 {[%emt 0:02:09][%cal Bf8c8,Bc8c3,Bc3d3][%mdl 32]} 18. Bc3 {[%emt 0:04:05]} Qa6 {[%emt 0:05:30]} 19. Bb4 {[%emt 0:03:02]} Bxb4 {[%emt 0:01:34]} 20. Rxb4 {[%emt 0:00:02]} Rc3 {[%emt 0:00:12]} 21. Rab1 {[%emt 0:03:11]} ({Better is} 21. a4 $14) 21... Qxd3 $11 {[%emt 0:03:50] The position is equal.} 22. Rxb7 {[%emt 0:04:58]} Be8 {[%emt 0:12:57]} 23. Rb8 {[%emt 0:02:59]} Rxb8 {[%emt 0:01:06]} ({Weaker is} 23... Raxa3 24. Rxe8#) ({Wrong is} 23... Qxe2 $2 24. Rxa8 Kf8 25. Nxe2 $18) 24. Rxb8 {[%emt 0:00:35]} Kf8 {[%emt 0:00:10] [#] Strongly threatening ...Rc1+.} 25. Qxd3 {[%emt 0:09:53]} Rxd3 {[%emt 0:00:26]} 26. h3 {[%emt 0:01:05]} Nf5 {[%emt 0:05:51]} 27. Nxf5 {[%emt 0:08:42] Weighted Error Value: White=0.06 (flawless) /Black=0.06 (flawless) .  Mistake:       	White=1     	---        Inaccurate:     	White=1     	Black=2      OK:         	White=9     	Black=10} 1/2-1/2

[Event "Budapest Chess Festival 2024"]
[Site "Budapest"]
[Date "2024.05.29"]
[Round "7.8"]
[White "Costa, Leonardo"]
[Black "Vanczak, Tamas"]
[Result "1-0"]
[ECO "B12"]
[WhiteElo "2486"]
[BlackElo "2412"]
[Annotator "TA"]
[PlyCount "85"]
[EventDate "2024.05.20"]
[EventType "swiss"]
[EventCountry "HUN"]
[SourceTitle "playchess.com"]
[Source "ChessBase"]
[SourceQuality "1"]
[TimeControl "40/5400+30:1800+30"]

{[%evp 10,85,22,28,40,32,39,14,18,23,20,16,0,3,19,0,42,-8,0,-11,39,26,13,8,22,10,21,23,38,27,39,17,18,16,10,11,27,20,61,77,62,71,101,105,209,215,263,265,262,259,307,181,214,229,219,222,214,224,225,177,391,385,391,411,464,398,520,499,779,779,827,827,853,847,29969,29970,29989,29971]} 1. e4 {[%emt 0:00:33]} c6 {[%emt 0:00:41]} 2. d4 {[%emt 0:00:04]} d5 {[%emt 0:00:05]} 3. e5 {[%emt 0:00:03]} Bf5 {[%emt 0:00:12]} 4. Nf3 {[%emt 0:00:04]} e6 {[%emt 0:00:10]} 5. Be2 {[%emt 0:00:04]} Nd7 {[%emt 0:00:20]} 6. O-O {[%emt 0:00:06]} a5 {[%emt 0:00:13]} 7. a4 {[%emt 0:00:19]} f6 {[%emt 0:00:41]} 8. c4 {[%emt 0:00:16]} fxe5 {[%emt 0:00:24] The position is equal.} 9. dxe5 {[%emt 0:00:03]} Bc5 {[%emt 0:00:30]} 10. Nbd2 {[%emt 0:00:12]} Ne7 {[%emt 0:00:47]} 11. Nb3 {[%emt 0:00:04]} Ba7 {[%emt 0:00:11]} 12. Bd2 {[%emt 0:20:24]} O-O {[%emt 0:00:22]} 13. cxd5 {[%emt 0:04:40]} ({White should try} 13. Bxa5 $14 Qe8 14. Bc7) 13... exd5 $11 {[%emt 0:01:57]} 14. Bxa5 {[%emt 0:00:53]} Qe8 {[%emt 0:00:55]} (14... Qc8 $11) 15. Bc7 {[%emt 0:02:56]} (15. Bb4 {keeps more tension.} Bg4 16. e6 Bxe6 17. Re1) 15... Bb8 {[%emt 0:01:52]} 16. Bxb8 {[%emt 0:08:23]} Qxb8 {[%emt 0:00:11]} 17. Qd4 {[%emt 0:01:59]} Ng6 {[%emt 0:14:39][%cal Of5e4]} 18. Rfe1 {[%emt 0:01:04]} Re8 {[%emt 0:14:58][%cal Rg6e5]} 19. Qc3 {[%emt 0:19:13]} Bg4 {[%emt 0:09:29][%cal Og4f3]} 20. a5 {[%emt 0:05:07][%cal Oe5e6]} Bxf3 $1 {[%emt 0:01:37]} 21. Bxf3 {[%emt 0:00:03]} Ngxe5 {[%emt 0:00:34]} 22. Be2 {[%emt 0:02:44]} Qd6 {[%emt 0:02:50]} 23. Rac1 {[%emt 0:03:48]} Rac8 {[%emt 0:11:36]} 24. f4 {[%emt 0:03:03]} Ng6 {[%emt 0:01:03]} 25. g3 {[%emt 0:00:03]} c5 {[%emt 0:08:05] [#] Dodges Nd4. White now steadily converts the win.} 26. Bg4 $1 {[%emt 0:03:36]} Rxe1+ {[%emt 0:01:26]} (26... c4 $16 {was worth a try.}) 27. Rxe1 $18 {[%emt 0:00:10] Strongly threatening Nd4.} (27. Qxe1 $6 Ngf8 $16) 27... Ngf8 {[%emt 0:00:08]} 28. Nd4 {[%emt 0:03:45] Nf5 would now be deadly.} Qf6 {[%emt 0:03:24]} 29. Nf5 {[%emt 0:02:14]} Kh8 {[%emt 0:04:30]} 30. Re7 {[%emt 0:10:05]} (30. Qb3 $142 g6 31. Ne3 (31. Qxb7 gxf5 32. Qxc8 Qd4+ 33. Kh1 fxg4 $11)) 30... Qxc3 {[%emt 0:07:29]} 31. bxc3 {[%emt 0:00:03][%cal Of5d6] And now Nd6! would win.} Ra8 {[%emt 0:01:23]} 32. Nxg7 {[%emt 0:05:05]} (32. Rxg7 Rxa5 33. Rf7 Ra6) 32... Nf6 {[%emt 0:00:10] [#]} 33. Bf3 {[%emt 0:00:19]} Rxa5 {[%emt 0:00:55]} 34. Nf5 {[%emt 0:00:40][%cal Oe7f7] Rf7! is the strong threat.} (34. Rxb7 d4 35. cxd4 c4 $16) 34... Ra3 $2 {[%emt 0:03:22]} (34... b5 35. Rf7 N8d7) 35. Rf7 {[%emt 0:00:33]} (35. Rxb7 d4 36. Rc7 dxc3 37. Rxc5 c2 38. Rxc2 Rxf3 $15) 35... N6d7 {[%emt 0:00:55]} 36. Bxd5 {[%emt 0:01:04]} Rxc3 {[%emt 0:00:27]} 37. g4 {[%emt 0:01:11][%cal Bg3g4,Bg4g5][%mdl 32] Threatens to win with g5!} ({Weaker is} 37. Bxb7 Ra3 38. Bc6 Ra7 $18) 37... Rd3 {[%emt 0:01:02]} 38. Bc4 {[%emt 0:01:02]} ({Not} 38. Bxb7 c4 39. Be4 Rd2 $16) 38... Rd2 {[%emt 0:02:16]} (38... Rd1+ $142 39. Kf2 Rb1) 39. g5 {[%emt 0:00:46] Black must now prevent Rg7.} Rc2 {[%emt 0:00:56]} 40. Bb5 {[%emt 0:00:00]} Rd2 {[%emt 0:00:00]} 41. Nh6 {[%emt 0:05:17]} Rd4 {[%emt 0:02:02]} 42. f5 {[%emt 0:01:22][%cal Bf4f5,Bf5f6][%mdl 32]} c4 {[%emt 0:01:36]} 43. f6 {[%emt 0:00:04] Weighted Error Value: White=0.09 (flawless) /Black=0.46.  Mistake:       	White=2     	Black=4      Inaccurate:     	---       	Black=4      OK:         	White=14    	Black=12     Best:        	White=5     	---        Strong:       	White=1     	Black=1} 1-0